[Event "Titled Tuesday Blitz May 2 Late 2023"]
[White "Antonica, Dragos-Andrei"]
[Black "Mekhitarian, Krikor Sevag"]
[WhiteFideId "1246372"]
[BlackFideId "2107660"]
[WhiteElo "2285"]
[BlackElo "2604"]
[Result "0-1"]
[Round "10"]
[TimeControl "180+2"]
[Date "2023.05.02"]
[WhiteClock "0:00:47"]
[BlackClock "0:00:03"]

1. c4 {[%clk 0:02:55]}  c5 {[%clk 0:03:00]} 2. Nc3 {[%clk 0:02:55]}  Nc6 {[%clk 0:03:00]} 3. g3 {[%clk 0:02:56]}  g6 {[%clk 0:02:57]} 4. Bg2 {[%clk 0:02:56]}  Bg7 {[%clk 0:02:58]} 5. e3 {[%clk 0:02:56]}  Nh6 {[%clk 0:02:57]} 6. Nge2 {[%clk 0:02:56]}  Nf5 {[%clk 0:02:57]} 7. O-O {[%clk 0:02:57]}  O-O {[%clk 0:02:55]} 8. d3 {[%clk 0:02:56]}  d6 {[%clk 0:02:52]} 9. a3 {[%clk 0:02:56]}  Qd7 {[%clk 0:02:50]} 10. Rb1 {[%clk 0:02:57]}  b6 {[%clk 0:02:51]} 11. b4 {[%clk 0:02:56]}  Bb7 {[%clk 0:02:51]} 12. Bb2 {[%clk 0:02:55]}  Rad8 {[%clk 0:02:40]} 13. b5 {[%clk 0:02:54]}  Na5 {[%clk 0:02:23]} 14. Nd5 {[%clk 0:02:41]}  Bxb2 {[%clk 0:02:20]} 15. Rxb2 {[%clk 0:02:42]}  Bxd5 {[%clk 0:02:14]} 16. Bxd5 {[%clk 0:02:43]}  e6 {[%clk 0:02:12]} 17. Bg2 {[%clk 0:02:43]}  d5 {[%clk 0:02:11]} 18. cxd5 {[%clk 0:02:41]}  exd5 {[%clk 0:02:11]} 19. Nf4 {[%clk 0:02:42]}  d4 {[%clk 0:02:07]} 20. e4 {[%clk 0:02:42]}  Ne7 {[%clk 0:02:06]} 21. e5 {[%clk 0:02:42]}  c4 {[%clk 0:01:38]} 22. Re2 {[%clk 0:02:34]}  Qxb5 {[%clk 0:01:34]} 23. e6 {[%clk 0:02:34]}  f5 {[%clk 0:01:19]} 24. Rfe1 {[%clk 0:02:26]}  c3 {[%clk 0:01:18]} 25. Re5 {[%clk 0:02:24]}  Qb3 {[%clk 0:01:14]} 26. Qc1 {[%clk 0:02:10]}  Rd6 {[%clk 0:00:52]} 27. Nh5 {[%clk 0:02:09]}  gxh5 {[%clk 0:00:41]} 28. Qg5+ {[%clk 0:02:08]}  Ng6 {[%clk 0:00:42]} 29. e7 {[%clk 0:02:08]}  Re8 {[%clk 0:00:42]} 30. Rxf5 {[%clk 0:02:08]}  Re6 {[%clk 0:00:36]} 31. Rxe6 {[%clk 0:02:03]}  Qxe6 {[%clk 0:00:33]} 32. Bd5 {[%clk 0:02:03]}  Qxd5 {[%clk 0:00:31]} 33. Rxd5 {[%clk 0:02:04]}  Rxe7 {[%clk 0:00:31]} 34. Rxd4 {[%clk 0:01:43]}  Nc6 {[%clk 0:00:15]} 35. Rc4 {[%clk 0:01:38]}  Ne5 {[%clk 0:00:15]} 36. Rc8+ {[%clk 0:01:38]}  Kg7 {[%clk 0:00:15]} 37. Qxh5 {[%clk 0:01:37]}  Nxd3 {[%clk 0:00:12]} 38. Rxc3 {[%clk 0:01:36]}  Re1+ {[%clk 0:00:13]} 39. Kg2 {[%clk 0:01:35]}  Ndf4+ {[%clk 0:00:14]} 40. gxf4 {[%clk 0:01:33]}  Nxf4+ {[%clk 0:00:15]} 41. Kf3 {[%clk 0:01:32]}  Nxh5 {[%clk 0:00:16]} 42. Rc7+ {[%clk 0:01:32]}  Kg6 {[%clk 0:00:16]} 43. Rxa7 {[%clk 0:01:33]}  Rb1 {[%clk 0:00:14]} 44. Ra6 {[%clk 0:01:33]}  Nf6 {[%clk 0:00:12]} 45. a4 {[%clk 0:01:33]}  Kf5 {[%clk 0:00:10]} 46. a5 {[%clk 0:01:34]}  Rb3+ {[%clk 0:00:10]} 47. Kg2 {[%clk 0:01:34]}  bxa5 {[%clk 0:00:09]} 48. Rxa5+ {[%clk 0:01:34]}  Kg6 {[%clk 0:00:09]} 49. Ra4 {[%clk 0:01:35]}  h5 {[%clk 0:00:08]} 50. Rc4 {[%clk 0:01:35]}  Rd3 {[%clk 0:00:08]} 51. Rb4 {[%clk 0:01:34]}  Rd5 {[%clk 0:00:09]} 52. Ra4 {[%clk 0:01:34]}  Rg5+ {[%clk 0:00:09]} 53. Kh3 {[%clk 0:01:26]}  Rg4 {[%clk 0:00:08]} 54. Ra6 {[%clk 0:01:00]}  Kg5 {[%clk 0:00:07]} 55. Ra5+ {[%clk 0:00:59]}  Kh6 {[%clk 0:00:07]} 56. Ra6 {[%clk 0:00:59]}  Kg7 {[%clk 0:00:07]} 57. Ra7+ {[%clk 0:00:59]}  Kg6 {[%clk 0:00:07]} 58. Ra6 {[%clk 0:01:00]}  Rg1 {[%clk 0:00:07]} 59. Rb6 {[%clk 0:00:59]}  Rg5 {[%clk 0:00:04]} 60. Ra6 {[%clk 0:00:59]}  Rb5 {[%clk 0:00:04]} 61. Rc6 {[%clk 0:00:59]}  Kg5 {[%clk 0:00:04]} 62. Kg2 {[%clk 0:00:58]}  Nd5 {[%clk 0:00:03]} 63. Rc4 {[%clk 0:00:55]}  Kf5 {[%clk 0:00:02]} 64. Kg3 {[%clk 0:00:53]}  Nf6 {[%clk 0:00:01]} 65. f3 {[%clk 0:00:53]}  Kg6 {[%clk 0:00:02]} 66. Rc6 {[%clk 0:00:53]}  Rf5 {[%clk 0:00:03]} 67. h4 {[%clk 0:00:53]}  Rd5 {[%clk 0:00:03]} 68. Ra6 {[%clk 0:00:53]}  Kf5 {[%clk 0:00:04]} 69. Rb6 {[%clk 0:00:54]}  Rc5 {[%clk 0:00:04]} 70. Ra6 {[%clk 0:00:54]}  Rd5 {[%clk 0:00:04]} 71. Rb6 {[%clk 0:00:54]}  Rd3 {[%clk 0:00:05]} 72. Rb5+ {[%clk 0:00:54]}  Kg6 {[%clk 0:00:05]} 73. Rg5+ {[%clk 0:00:54]}  Kh6 {[%clk 0:00:06]} 74. Rf5 {[%clk 0:00:54]}  Rd6 {[%clk 0:00:06]} 75. Rg5 {[%clk 0:00:54]}  Nd7 {[%clk 0:00:05]} 76. Rf5 {[%clk 0:00:54]}  Rf6 {[%clk 0:00:03]} 77. Rd5 {[%clk 0:00:53]}  Nf8 {[%clk 0:00:03]} 78. Ra5 {[%clk 0:00:51]}  Ng6 {[%clk 0:00:03]} 79. Rb5 {[%clk 0:00:51]}  Nf4 {[%clk 0:00:02]} 80. Rb2 {[%clk 0:00:49]}  Ne6 {[%clk 0:00:02]} 81. Rb6 {[%clk 0:00:47]}  Rg6+ {[%clk 0:00:02]} 82. Kf2 {[%clk 0:00:47]}  Nf4 {[%clk 0:00:02]} 83. Rb4 {[%clk 0:00:47]}  Nd3+ {[%clk 0:00:03]} 84. Ke3 {[%clk 0:00:47]}  Nxb4 {[%clk 0:00:03]} 0-1


[Site "https://www.chess.com"]

[Event "Titled Tuesday Blitz May 2 Late 2023"]
[White "Haszon, David"]
[Black "Prohaszka, Peter"]
[WhiteFideId "733610"]
[BlackFideId "726265"]
[WhiteElo "2210"]
[BlackElo "2626"]
[Result "0-1"]
[Round "10"]
[TimeControl "180+2"]
[Date "2023.05.02"]
[WhiteClock "0:00:17"]
[BlackClock "0:00:07"]

1. d4 {[%clk 0:03:00]}  d5 {[%clk 0:02:55]} 2. Bf4 {[%clk 0:02:58]}  c5 {[%clk 0:02:54]} 3. e3 {[%clk 0:02:57]}  cxd4 {[%clk 0:02:54]} 4. exd4 {[%clk 0:02:57]}  Nc6 {[%clk 0:02:54]} 5. c3 {[%clk 0:02:53]}  Nf6 {[%clk 0:02:42]} 6. Nd2 {[%clk 0:02:51]}  Bf5 {[%clk 0:02:41]} 7. Qb3 {[%clk 0:02:46]}  Qc8 {[%clk 0:02:32]} 8. Ngf3 {[%clk 0:02:43]}  e6 {[%clk 0:02:32]} 9. h3 {[%clk 0:02:28]}  h6 {[%clk 0:02:29]} 10. a4 {[%clk 0:02:28]}  Be7 {[%clk 0:02:28]} 11. a5 {[%clk 0:02:27]}  a6 {[%clk 0:02:18]} 12. Ne5 {[%clk 0:02:14]}  O-O {[%clk 0:02:17]} 13. g4 {[%clk 0:02:01]}  Bh7 {[%clk 0:02:17]} 14. Bg2 {[%clk 0:01:59]}  Nd7 {[%clk 0:02:09]} 15. Ndf3 {[%clk 0:01:55]}  f6 {[%clk 0:01:43]} 16. Nxd7 {[%clk 0:01:46]}  Qxd7 {[%clk 0:01:43]} 17. O-O {[%clk 0:01:47]}  Bd8 {[%clk 0:01:37]} 18. Rfe1 {[%clk 0:01:46]}  Nxa5 {[%clk 0:01:31]} 19. Qa2 {[%clk 0:01:34]}  Nc6 {[%clk 0:01:20]} 20. Nd2 {[%clk 0:01:32]}  Bg6 {[%clk 0:01:05]} 21. Rxe6 {[%clk 0:01:24]}  Bf7 {[%clk 0:01:06]} 22. Re2 {[%clk 0:01:17]}  f5 {[%clk 0:00:54]} 23. gxf5 {[%clk 0:01:01]}  Qxf5 {[%clk 0:00:54]} 24. Bg3 {[%clk 0:01:02]}  Bf6 {[%clk 0:00:34]} 25. Qb1 {[%clk 0:01:01]}  Qh5 {[%clk 0:00:22]} 26. Qe1 {[%clk 0:00:57]}  Rfe8 {[%clk 0:00:20]} 27. Bf1 {[%clk 0:00:51]}  Ne7 {[%clk 0:00:16]} 28. Nb3 {[%clk 0:00:46]}  Ng6 {[%clk 0:00:13]} 29. Qd2 {[%clk 0:00:44]}  Nh4 {[%clk 0:00:10]} 30. Rxe8+ {[%clk 0:00:32]}  Rxe8 {[%clk 0:00:09]} 31. Qd1 {[%clk 0:00:33]}  Qxd1 {[%clk 0:00:04]} 32. Rxd1 {[%clk 0:00:32]}  Bg6 {[%clk 0:00:04]} 33. Bxh4 {[%clk 0:00:27]}  Bxh4 {[%clk 0:00:04]} 34. Bg2 {[%clk 0:00:28]}  Bc2 {[%clk 0:00:04]} 35. Bxd5+ {[%clk 0:00:26]}  Kf8 {[%clk 0:00:05]} 36. Rf1 {[%clk 0:00:22]}  Bd3 {[%clk 0:00:04]} 37. Rd1 {[%clk 0:00:21]}  Bc2 {[%clk 0:00:04]} 38. Rc1 {[%clk 0:00:21]}  Bf5 {[%clk 0:00:04]} 39. Bxb7 {[%clk 0:00:17]}  Re2 {[%clk 0:00:04]} 40. Rf1 {[%clk 0:00:14]}  Rxb2 {[%clk 0:00:04]} 41. Nc5 {[%clk 0:00:14]}  Be7 {[%clk 0:00:03]} 42. Be4 {[%clk 0:00:14]}  Bxh3 {[%clk 0:00:02]} 43. Bg2 {[%clk 0:00:13]}  Bxg2 {[%clk 0:00:02]} 44. Kxg2 {[%clk 0:00:14]}  a5 {[%clk 0:00:02]} 45. Ra1 {[%clk 0:00:14]}  Bxc5 {[%clk 0:00:02]} 46. dxc5 {[%clk 0:00:14]}  Rb5 {[%clk 0:00:03]} 47. c4 {[%clk 0:00:13]}  Rxc5 {[%clk 0:00:04]} 48. Ra4 {[%clk 0:00:14]}  Ke7 {[%clk 0:00:04]} 49. Kf3 {[%clk 0:00:14]}  Kd6 {[%clk 0:00:04]} 50. Ke4 {[%clk 0:00:15]}  h5 {[%clk 0:00:05]} 51. Kd4 {[%clk 0:00:14]}  h4 {[%clk 0:00:06]} 52. f4 {[%clk 0:00:13]}  h3 {[%clk 0:00:05]} 53. Ra2 {[%clk 0:00:14]}  Rh5 {[%clk 0:00:05]} 54. Rh2 {[%clk 0:00:14]}  Kc6 {[%clk 0:00:06]} 55. Ke4 {[%clk 0:00:13]}  Kc5 {[%clk 0:00:06]} 56. Kf3 {[%clk 0:00:14]}  g6 {[%clk 0:00:06]} 57. Kg4 {[%clk 0:00:14]}  Kxc4 {[%clk 0:00:06]} 58. f5 {[%clk 0:00:15]}  Rxf5 {[%clk 0:00:06]} 59. Rxh3 {[%clk 0:00:15]}  a4 {[%clk 0:00:07]} 60. Rh1 {[%clk 0:00:16]}  Rf2 {[%clk 0:00:06]} 61. Rc1+ {[%clk 0:00:15]}  Kb3 {[%clk 0:00:06]} 62. Rb1+ {[%clk 0:00:16]}  Rb2 {[%clk 0:00:05]} 63. Re1 {[%clk 0:00:15]}  a3 {[%clk 0:00:06]} 64. Re8 {[%clk 0:00:16]}  a2 {[%clk 0:00:06]} 65. Rb8+ {[%clk 0:00:16]}  Kc2 {[%clk 0:00:07]} 66. Rc8+ {[%clk 0:00:17]}  Kb1 {[%clk 0:00:07]} 0-1


[Site "https://www.chess.com"]

[Event "Titled Tuesday Blitz May 2 Late 2023"]
[White "Zhigalko, Sergei"]
[Black "Osinenko, Anton"]
[WhiteFideId "13502956"]
[BlackFideId "4158970"]
[WhiteElo "2626"]
[BlackElo "2294"]
[Result "1-0"]
[Round "10"]
[TimeControl "180+2"]
[Date "2023.05.02"]
[WhiteClock "0:01:26"]
[BlackClock "0:00:47"]

1. e4 {[%clk 0:03:00]}  Nc6 {[%clk 0:03:00]} 2. Nf3 {[%clk 0:03:01]}  e6 {[%clk 0:03:00]} 3. d4 {[%clk 0:03:01]}  d5 {[%clk 0:03:00]} 4. e5 {[%clk 0:02:56]}  Nge7 {[%clk 0:03:00]} 5. Bd3 {[%clk 0:02:52]}  Nf5 {[%clk 0:03:00]} 6. c3 {[%clk 0:02:50]}  h5 {[%clk 0:03:00]} 7. h4 {[%clk 0:02:49]}  Be7 {[%clk 0:03:00]} 8. g3 {[%clk 0:02:49]}  b6 {[%clk 0:02:59]} 9. O-O {[%clk 0:02:48]}  Bb7 {[%clk 0:02:59]} 10. Re1 {[%clk 0:02:45]}  Qd7 {[%clk 0:02:57]} 11. b4 {[%clk 0:02:44]}  a6 {[%clk 0:02:50]} 12. a4 {[%clk 0:02:43]}  Bd8 {[%clk 0:02:51]} 13. Bg5 {[%clk 0:02:37]}  Nce7 {[%clk 0:02:40]} 14. Nbd2 {[%clk 0:02:35]}  c5 {[%clk 0:02:24]} 15. bxc5 {[%clk 0:02:26]}  bxc5 {[%clk 0:02:25]} 16. Nb3 {[%clk 0:02:24]}  Bb6 {[%clk 0:02:09]} 17. dxc5 {[%clk 0:02:08]}  Bc7 {[%clk 0:02:02]} 18. Nfd4 {[%clk 0:01:57]}  Rc8 {[%clk 0:01:52]} 19. c6 {[%clk 0:01:51]}  Nxc6 {[%clk 0:01:06]} 20. Nc5 {[%clk 0:01:46]}  Nfxd4 {[%clk 0:00:54]} 21. Nxd7 {[%clk 0:01:44]}  Kxd7 {[%clk 0:00:55]} 22. cxd4 {[%clk 0:01:43]}  Nxd4 {[%clk 0:00:56]} 23. Rb1 {[%clk 0:01:39]}  Rb8 {[%clk 0:00:47]} 24. Bxa6 {[%clk 0:01:26]} 1-0


[Site "https://www.chess.com"]

[Event "Titled Tuesday Blitz May 2 Late 2023"]
[White "Nasir, Zehn"]
[Black "Indjic, Aleksandar"]
[WhiteFideId "2613239"]
[BlackFideId "911925"]
[WhiteElo "1993"]
[BlackElo "2614"]
[Result "0-1"]
[Round "10"]
[TimeControl "180+2"]
[Date "2023.05.02"]
[WhiteClock "0:00:14"]
[BlackClock "0:00:27"]

1. e4 {[%clk 0:03:00]}  e5 {[%clk 0:02:51]} 2. Nf3 {[%clk 0:03:00]}  Nc6 {[%clk 0:02:51]} 3. Nc3 {[%clk 0:03:00]}  Nf6 {[%clk 0:02:51]} 4. d4 {[%clk 0:03:00]}  Bb4 {[%clk 0:02:50]} 5. d5 {[%clk 0:02:58]}  Ne7 {[%clk 0:02:46]} 6. Bd3 {[%clk 0:02:55]}  Bxc3+ {[%clk 0:02:44]} 7. bxc3 {[%clk 0:02:55]}  d6 {[%clk 0:02:45]} 8. h3 {[%clk 0:02:53]}  O-O {[%clk 0:02:44]} 9. O-O {[%clk 0:02:51]}  Ng6 {[%clk 0:02:43]} 10. Rb1 {[%clk 0:02:38]}  b6 {[%clk 0:02:41]} 11. Kh2 {[%clk 0:02:22]}  h6 {[%clk 0:02:41]} 12. g3 {[%clk 0:02:22]}  Qd7 {[%clk 0:02:36]} 13. Ng1 {[%clk 0:02:19]}  c6 {[%clk 0:02:36]} 14. c4 {[%clk 0:02:19]}  Re8 {[%clk 0:02:33]} 15. Qe2 {[%clk 0:02:00]}  Ba6 {[%clk 0:02:30]} 16. Bd2 {[%clk 0:01:52]}  Rac8 {[%clk 0:02:29]} 17. Rbe1 {[%clk 0:01:43]}  Qc7 {[%clk 0:02:18]} 18. f4 {[%clk 0:01:41]}  exf4 {[%clk 0:02:00]} 19. gxf4 {[%clk 0:01:42]}  Nxe4 {[%clk 0:01:48]} 20. Bxe4 {[%clk 0:01:36]}  cxd5 {[%clk 0:01:48]} 21. f5 {[%clk 0:01:03]}  Rxe4 {[%clk 0:01:47]} 22. Qf3 {[%clk 0:01:00]}  Ne5 {[%clk 0:01:34]} 23. Qg3 {[%clk 0:00:57]}  f6 {[%clk 0:01:34]} 24. Rxe4 {[%clk 0:00:55]}  dxe4 {[%clk 0:01:33]} 25. Bxh6 {[%clk 0:00:55]}  Qf7 {[%clk 0:01:29]} 26. Rd1 {[%clk 0:00:52]}  Rxc4 {[%clk 0:01:04]} 27. Rxd6 {[%clk 0:00:47]}  Rxc2+ {[%clk 0:01:03]} 28. Kh1 {[%clk 0:00:47]}  Rc8 {[%clk 0:00:55]} 29. Bf4 {[%clk 0:00:46]}  Nd3 {[%clk 0:00:54]} 30. Be3 {[%clk 0:00:35]}  Bb7 {[%clk 0:00:48]} 31. Ne2 {[%clk 0:00:29]}  Qh5 {[%clk 0:00:47]} 32. Nd4 {[%clk 0:00:22]}  Qd1+ {[%clk 0:00:37]} 33. Kh2 {[%clk 0:00:21]}  Ne5 {[%clk 0:00:30]} 34. Ne6 {[%clk 0:00:16]}  Rc2+ {[%clk 0:00:28]} 35. Bf2 {[%clk 0:00:16]}  Nf3+ {[%clk 0:00:26]} 36. Kg2 {[%clk 0:00:14]}  Qg1# {[%clk 0:00:27]} 0-1


[Site "https://www.chess.com"]

[Event "Titled Tuesday Blitz May 2 Late 2023"]
[White "Bryant, John Daniel"]
[Black "Loiacono, Antonio"]
[WhiteFideId "2031280"]
[BlackFideId "895415"]
[WhiteElo "2455"]
[BlackElo "2257"]
[Result "0-1"]
[Round "10"]
[TimeControl "180+2"]
[Date "2023.05.02"]
[WhiteClock "0:00:07"]
[BlackClock "0:00:15"]

1. e4 {[%clk 0:03:00]}  e5 {[%clk 0:02:58]} 2. Nf3 {[%clk 0:02:59]}  Nc6 {[%clk 0:02:59]} 3. d4 {[%clk 0:02:57]}  exd4 {[%clk 0:02:58]} 4. Nxd4 {[%clk 0:02:58]}  Nxd4 {[%clk 0:02:57]} 5. Qxd4 {[%clk 0:02:58]}  Qf6 {[%clk 0:02:57]} 6. e5 {[%clk 0:02:53]}  Qb6 {[%clk 0:02:57]} 7. Qxb6 {[%clk 0:02:50]}  axb6 {[%clk 0:02:57]} 8. Nc3 {[%clk 0:02:49]}  c6 {[%clk 0:02:46]} 9. Bd3 {[%clk 0:02:27]}  d5 {[%clk 0:02:43]} 10. exd6 {[%clk 0:02:18]}  Bxd6 {[%clk 0:02:42]} 11. O-O {[%clk 0:02:17]}  Ne7 {[%clk 0:02:19]} 12. Be3 {[%clk 0:02:04]}  Bc7 {[%clk 0:02:15]} 13. Rfe1 {[%clk 0:01:57]}  Be6 {[%clk 0:02:11]} 14. Bg5 {[%clk 0:01:50]}  Ra5 {[%clk 0:01:46]} 15. f4 {[%clk 0:01:34]}  Bd8 {[%clk 0:01:16]} 16. Ne4 {[%clk 0:00:41]}  h6 {[%clk 0:00:23]} 17. Bh4 {[%clk 0:00:31]}  Kd7 {[%clk 0:00:22]} 18. Rad1 {[%clk 0:00:25]}  Kc7 {[%clk 0:00:20]} 19. a3 {[%clk 0:00:17]}  Nf5 {[%clk 0:00:19]} 20. Bf2 {[%clk 0:00:16]}  Be7 {[%clk 0:00:14]} 21. g4 {[%clk 0:00:12]}  Nh4 {[%clk 0:00:14]} 22. Re3 {[%clk 0:00:10]}  Bd5 {[%clk 0:00:12]} 23. Rh3 {[%clk 0:00:09]}  g5 {[%clk 0:00:12]} 24. Kf1 {[%clk 0:00:06]}  Re8 {[%clk 0:00:11]} 25. Bg3 {[%clk 0:00:05]}  Kc8 {[%clk 0:00:10]} 26. Re1 {[%clk 0:00:05]}  Kd7 {[%clk 0:00:09]} 27. fxg5 {[%clk 0:00:04]}  hxg5 {[%clk 0:00:10]} 28. Bxh4 {[%clk 0:00:04]}  gxh4 {[%clk 0:00:10]} 29. Rhe3 {[%clk 0:00:05]}  Bxe4 {[%clk 0:00:08]} 30. Rxe4 {[%clk 0:00:06]}  f5 {[%clk 0:00:08]} 31. R4e2 {[%clk 0:00:06]}  fxg4 {[%clk 0:00:08]} 32. Kg1 {[%clk 0:00:06]}  Rd5 {[%clk 0:00:07]} 33. Kh1 {[%clk 0:00:06]}  Rd6 {[%clk 0:00:05]} 34. Bc4 {[%clk 0:00:05]}  Rf6 {[%clk 0:00:03]} 35. b4 {[%clk 0:00:05]}  Kd8 {[%clk 0:00:03]} 36. Rd1+ {[%clk 0:00:05]}  Kc7 {[%clk 0:00:03]} 37. Rde1 {[%clk 0:00:05]}  b5 {[%clk 0:00:03]} 38. Bd3 {[%clk 0:00:05]}  Kd8 {[%clk 0:00:04]} 39. c4 {[%clk 0:00:06]}  bxc4 {[%clk 0:00:04]} 40. Bxc4 {[%clk 0:00:07]}  b5 {[%clk 0:00:04]} 41. Bd3 {[%clk 0:00:06]}  g3 {[%clk 0:00:03]} 42. hxg3 {[%clk 0:00:06]}  hxg3 {[%clk 0:00:04]} 43. Kg1 {[%clk 0:00:06]}  Rf2 {[%clk 0:00:04]} 44. Re4 {[%clk 0:00:06]}  Rf7 {[%clk 0:00:03]} 45. Rd1 {[%clk 0:00:06]}  Kc7 {[%clk 0:00:04]} 46. Kg2 {[%clk 0:00:06]}  Rf2+ {[%clk 0:00:03]} 47. Kxg3 {[%clk 0:00:06]}  Rf7 {[%clk 0:00:03]} 48. Re6 {[%clk 0:00:06]}  Rg8+ {[%clk 0:00:03]} 49. Bg6 {[%clk 0:00:06]}  Rfg7 {[%clk 0:00:03]} 50. Kf3 {[%clk 0:00:06]}  Rxg6 {[%clk 0:00:03]} 51. Rxe7+ {[%clk 0:00:07]}  Kb6 {[%clk 0:00:04]} 52. Rdd7 {[%clk 0:00:07]}  Rb8 {[%clk 0:00:05]} 53. Ke4 {[%clk 0:00:07]}  Rgg8 {[%clk 0:00:05]} 54. Ra7 {[%clk 0:00:07]}  Rge8 {[%clk 0:00:04]} 55. Kd4 {[%clk 0:00:08]}  Rxe7 {[%clk 0:00:05]} 56. Rxe7 {[%clk 0:00:09]}  Ra8 {[%clk 0:00:06]} 57. Re8 {[%clk 0:00:08]}  Rxa3 {[%clk 0:00:06]} 58. Rb8+ {[%clk 0:00:08]}  Kc7 {[%clk 0:00:07]} 59. Rh8 {[%clk 0:00:09]}  Rb3 {[%clk 0:00:07]} 60. Rh7+ {[%clk 0:00:04]}  Kb6 {[%clk 0:00:08]} 61. Rh8 {[%clk 0:00:04]}  Rxb4+ {[%clk 0:00:08]} 62. Kc3 {[%clk 0:00:05]}  Rc4+ {[%clk 0:00:09]} 63. Kb3 {[%clk 0:00:05]}  Kc5 {[%clk 0:00:09]} 64. Rh5+ {[%clk 0:00:06]}  Kb6 {[%clk 0:00:10]} 65. Rh6 {[%clk 0:00:06]}  Rc5 {[%clk 0:00:10]} 66. Rh8 {[%clk 0:00:07]}  Rd5 {[%clk 0:00:11]} 67. Rb8+ {[%clk 0:00:06]}  Kc5 {[%clk 0:00:12]} 68. Rg8 {[%clk 0:00:07]}  Rd3+ {[%clk 0:00:12]} 69. Kc2 {[%clk 0:00:07]}  Rh3 {[%clk 0:00:13]} 70. Rg5+ {[%clk 0:00:07]}  Kb6 {[%clk 0:00:13]} 71. Rg8 {[%clk 0:00:07]}  b4 {[%clk 0:00:14]} 72. Rb8+ {[%clk 0:00:07]}  Kc5 {[%clk 0:00:14]} 73. Rg8 {[%clk 0:00:07]}  Kb5 {[%clk 0:00:14]} 74. Kb2 {[%clk 0:00:07]}  c5 {[%clk 0:00:14]} 75. Rb8+ {[%clk 0:00:07]}  Kc4 {[%clk 0:00:15]} 76. Rh8 {[%clk 0:00:07]}  Rxh8 {[%clk 0:00:15]} 0-1


[Site "https://www.chess.com"]

[Event "Titled Tuesday Blitz May 2 Late 2023"]
[White "Halkias, Stelios"]
[Black "Hajiyev, Kanan"]
[WhiteFideId "4201809"]
[BlackFideId "13404148"]
[WhiteElo "2451"]
[BlackElo "2103"]
[Result "1/2-1/2"]
[Round "10"]
[TimeControl "180+2"]
[Date "2023.05.02"]
[WhiteClock "0:00:15"]
[BlackClock "0:00:03"]

1. c4 {[%clk 0:03:00]}  c6 {[%clk 0:02:58]} 2. d4 {[%clk 0:03:00]}  d5 {[%clk 0:02:59]} 3. cxd5 {[%clk 0:03:00]}  cxd5 {[%clk 0:03:00]} 4. Nf3 {[%clk 0:03:00]}  Nf6 {[%clk 0:03:01]} 5. Nc3 {[%clk 0:03:01]}  Nc6 {[%clk 0:03:01]} 6. Bf4 {[%clk 0:03:01]}  g6 {[%clk 0:03:02]} 7. e3 {[%clk 0:03:01]}  Bg7 {[%clk 0:03:02]} 8. h3 {[%clk 0:03:01]}  O-O {[%clk 0:03:03]} 9. Bd3 {[%clk 0:03:01]}  Nd7 {[%clk 0:03:03]} 10. Bc2 {[%clk 0:02:59]}  e5 {[%clk 0:02:44]} 11. dxe5 {[%clk 0:02:58]}  Ndxe5 {[%clk 0:02:45]} 12. Nxe5 {[%clk 0:02:56]}  Nxe5 {[%clk 0:02:43]} 13. Bb3 {[%clk 0:02:47]}  Nc4 {[%clk 0:02:39]} 14. Bxc4 {[%clk 0:02:33]}  dxc4 {[%clk 0:02:38]} 15. O-O {[%clk 0:02:33]}  Qxd1 {[%clk 0:02:36]} 16. Rfxd1 {[%clk 0:02:33]}  Be6 {[%clk 0:02:37]} 17. e4 {[%clk 0:02:28]}  Rfd8 {[%clk 0:02:30]} 18. Rac1 {[%clk 0:02:28]}  a6 {[%clk 0:02:27]} 19. Nd5 {[%clk 0:02:27]}  Bxd5 {[%clk 0:02:22]} 20. exd5 {[%clk 0:02:26]}  b5 {[%clk 0:02:19]} 21. Rc2 {[%clk 0:02:25]}  Rd7 {[%clk 0:02:14]} 22. d6 {[%clk 0:02:21]}  Rad8 {[%clk 0:02:10]} 23. a4 {[%clk 0:02:21]}  h6 {[%clk 0:02:04]} 24. Rd5 {[%clk 0:02:16]}  g5 {[%clk 0:02:02]} 25. Bg3 {[%clk 0:02:16]}  bxa4 {[%clk 0:00:56]} 26. Rxc4 {[%clk 0:02:09]}  Bxb2 {[%clk 0:00:52]} 27. Rxa4 {[%clk 0:02:09]}  Ra8 {[%clk 0:00:43]} 28. Rc5 {[%clk 0:02:03]}  f6 {[%clk 0:00:26]} 29. Rc7 {[%clk 0:00:44]}  Ra7 {[%clk 0:00:25]} 30. Rxa6 {[%clk 0:00:33]}  Rxa6 {[%clk 0:00:17]} 31. Rxd7 {[%clk 0:00:32]}  Be5 {[%clk 0:00:11]} 32. Bxe5 {[%clk 0:00:27]}  fxe5 {[%clk 0:00:12]} 33. g4 {[%clk 0:00:27]}  Ra1+ {[%clk 0:00:09]} 34. Kg2 {[%clk 0:00:27]}  Rd1 {[%clk 0:00:10]} 35. Kf3 {[%clk 0:00:27]}  Rd4 {[%clk 0:00:11]} 36. Ke3 {[%clk 0:00:26]}  Kh8 {[%clk 0:00:08]} 37. f3 {[%clk 0:00:25]}  Kg8 {[%clk 0:00:08]} 38. Rd8+ {[%clk 0:00:16]}  Kg7 {[%clk 0:00:08]} 39. Rd7+ {[%clk 0:00:16]}  Kg6 {[%clk 0:00:07]} 40. Ke2 {[%clk 0:00:15]}  Rd5 {[%clk 0:00:06]} 41. Kf2 {[%clk 0:00:14]}  Rd4 {[%clk 0:00:07]} 42. Ke3 {[%clk 0:00:15]}  Kf6 {[%clk 0:00:06]} 43. Rh7 {[%clk 0:00:14]}  Kg6 {[%clk 0:00:07]} 44. Rd7 {[%clk 0:00:14]}  Kf6 {[%clk 0:00:07]} 45. Rd8 {[%clk 0:00:15]}  Kg7 {[%clk 0:00:06]} 46. d7 {[%clk 0:00:14]}  Kh7 {[%clk 0:00:06]} 47. Kf2 {[%clk 0:00:14]}  Rd2+ {[%clk 0:00:06]} 48. Ke3 {[%clk 0:00:14]}  Rd4 {[%clk 0:00:07]} 49. Re8 {[%clk 0:00:13]}  Rxd7 {[%clk 0:00:06]} 50. Rxe5 {[%clk 0:00:14]}  Kg6 {[%clk 0:00:07]} 51. Re6+ {[%clk 0:00:15]}  Kg7 {[%clk 0:00:07]} 52. f4 {[%clk 0:00:13]}  gxf4+ {[%clk 0:00:07]} 53. Kxf4 {[%clk 0:00:14]}  Rd4+ {[%clk 0:00:07]} 54. Kf5 {[%clk 0:00:14]}  Rd7 {[%clk 0:00:07]} 55. Ke5 {[%clk 0:00:14]}  Ra7 {[%clk 0:00:06]} 56. h4 {[%clk 0:00:14]}  Ra5+ {[%clk 0:00:06]} 57. Kf4 {[%clk 0:00:14]}  Ra4+ {[%clk 0:00:07]} 58. Re4 {[%clk 0:00:14]}  Ra7 {[%clk 0:00:03]} 59. Re6 {[%clk 0:00:14]}  Ra4+ {[%clk 0:00:02]} 60. Kf3 {[%clk 0:00:15]}  Ra3+ {[%clk 0:00:03]} 61. Kf4 {[%clk 0:00:15]}  Ra4+ {[%clk 0:00:03]} 1/2-1/2


[Site "https://www.chess.com"]